{"text_format":"1","workbook":"xlsx","n_sheets":1,"sheets":["HK-D01"],"not_rendered":{"charts":0,"images":0,"macros":0,"external_links":0,"defined_names":137,"comments":0,"pivot_tables":0},"unopened":[],"bounds":{"document_bytes":16777216,"sheet_cells":100000,"rows_first":2000,"rows_last":500,"rows_between":2000,"halvings":0,"cell_chars":16384,"cell_head_chars":4096},"cells_cut":0,"cells_raw":0,"read":"whole","date_system":"1900"}

{"sheet":"HK-D01","index":0,"n_rows":45,"n_cols":18,"rows_kept":45,"cut":false,"hidden":false,"merged":[[11,11,11,16],[5,11,5,16],[0,0,0,9],[0,11,0,16]]}
["LOPEZ LABS EMISSIONS TEST DATA FORM",null,null,null,null,null,null,null,null,null,null,"DATA INPUT SCREEN:"]
["Revised Jan 28/09"]
["RUN No.",null,{"$f":"RunNumber","v":"HKK-15"},null,"Heater ID",{"$f":"Q8","v":"HK"},null,"DATE",null,{"$f":"DATE","v":"2009-02-04"},null,"Instructions:",null,"Enter data only into fields that are"]
["Wood Moisture %",null,{"$f":"AVERAGE(Moisture)","v":20},null,"Time since last burn",null,{"$f":"TimeSinceLast","v":24},"Ambient Temperature",null,{"$f":"AmbientTemperature","v":"5F"},null,null,null,"shaded like this box"]
["Total Weight lbs",null,{"$f":"SUM(PcWt)+WtKindl-UnburnedFuel","v":60.599999999999994},null,"Start Time",null,{"$f":"(StartTime)","v":"11:12:00"},null,null,null,null,null,null,"Slide graph over when done and start test"]
["Kindling Weight lbs",null,{"$f":"KindlingWeight","v":4.5},null,"FUELING",null,null,null,null,null,null,"GENERAL"]
["Number of Pieces",null,{"$f":"COUNT(PcWt)","v":8},null,"Fuel Type..........................",null,null,{"$f":"FuelType","v":"Wh. Birch"},null,null,null,"RUN No.",null,"HKK-15","DATE",null,"2009-02-04"]
["Fuel Surface/Vol",null,{"$f":"(AVERAGE(Length)+SUM(Circumf))/(WtFuel-WtKindl)","v":{"$error":"#DIV/0!"}},null,"Fuel Density......................",null,null,{"$f":"O15","v":"smaller towards top"},null,null,null,"Time since last burn",null,24,"HEATER ID",null,"HK"]
["Average Pc. Wt. lbs",null,{"$f":"AVERAGE(PcWt)","v":7.0124999999999993},null,"Unburned Fuel.................",null,{"$f":"UnFuel","v":0},{"$f":"UnFuel","v":0},null,null,null,"Start Time",null,"11:12:00","Ambient Temperature",null,"5F"]
["Run Length hrs",null,1.2,null,null,null,null,null,null,null,null,null,null,null,"Weather","clear, slight wind","Flurries, calm"]
["Av. Stack Temp F",null,{"$f":"AVERAGE(StackTemp)","v":377}]
["Av. O2%",null,{"$f":"G14","v":12.04},null,"GAS DATA FROM TESTO SPREADSHEET",null,null,null,null,null,null,"FUELING"]
["Av. CO%",null,{"$f":"AVERAGE(CO)/10000","v":0.130686},null,null,"StackTemp","O2% x10","ppm CO",null,null,null,null,null,null,"Fuel Configuration:"]
["Stack Temp Factor",null,{"$f":"SQRT(528/(460+AvStackTemp))","v":0.79424452957502745},null,null,377,12.04,1306.8599999999999,null,null,null,"Fuel Type",null,"Wh. Birch",2222]
["Stack Dilution Factor",null,{"$f":"20.9/(20.9-_AvO2)","v":2.358916478555305},null,null,null,null,null,null,null,null,null,null,null,"smaller towards top"]
["Burn Rate  dry kg/hr",null,{"$f":"((WtFuel-(UnburnedFuel*(1+AvMoisture/100)))/RunLength)*(1-(AvMoisture/100))/2.2","v":18.363636363636363},null,null,null,null,null,null,null,null,"Kindling Weight",null,4.5]
["Boiling of Water Loss%",null,{"$f":"(8.05+0.0035*(AvStackTemp-70))+(2.58+0.00114*AvStackTemp)","v":12.13428},null,null,null,null,null,null,null,null,"Unburned Fuel",null,0]
["CO Loss %",null,{"$f":"gmKgCO*9.75/86","v":2.072537930134128}]
["HC Loss %",null,{"$f":"gmKgCondar*33/86","v":0.80045645828790679}]
["Dry Gas Loss %",null,{"$f":"((1.5*DilutionFactor*(AvStackTemp-70))/8600)*100","v":12.631174864822302},null,null,null,null,null,null,null,null,null,"DETAILED FUEL INFORMATION"]
["Filter Catch gm",null,{"$f":" Catch","v":0.1109},null,null,null,null,null,null,null,null,null,"Piece #","Weight","Moisture","Circumf","Length","Shape"]
["g/kg    Condar",null,{"$f":"(Catch/RunLength)*3.04*(DilutionFactor)/(0.4*StackTempFactor)","v":2.0860380428109084},null,null,null,null,null,null,null,null,null,1,8.8000000000000007,20]
["g/kg    CO",null,{"$f":"59.3*AvCO*DilutionFactor","v":18.280847383747179},null,null,null,null,null,null,null,null,null,2,8.6,20]
["Combustion Effic",null,{"$f":"100-COLoss-HCLoss","v":97.127005611577957},null,null,null,null,null,null,null,null,null,3,7.7,20]
["Heat Trans. Effic",null,{"$f":"100-DryGasLoss-BoilWaterLoss","v":75.234545135177697},null,null,null,null,null,null,null,null,null,4,7.4,20]
["Overall Efficiency",null,{"$f":"HTransEffic*CombustEffic/100","v":73.073060875289187},null,null,null,null,null,null,null,null,null,5,6.9,20]
["Filter","Clean","Dirty","Wt. of",null,null,null,null,null,null,null,null,6,5.9,20]
["Number","Filter Wt.","Filter Wt.","Particulat",null,null,null,null,null,null,null,null,7,5.5,20]
[1,1.0014000000000001,1.1101000000000001,{"$f":"IF(FiltDirty-FiltClean>0,FiltDirty-FiltClean,0)","v":0.10870000000000002},null,null,null,null,null,null,null,null,8,5.3,20]
[2,1.0065,1.0086999999999999,2.1999999999999797E-3,null,null,null,null,null,null,null,null,9]
[3,null,null,0,null,null,null,null,null,null,null,null,10]
[4,null,null,0,null,null,null,null,null,null,null,null,11]
[5,null,null,0,null,null,null,null,null,null,null,null,12]
[6,null,null,0,null,null,null,null,null,null,null,null,13]
["Ctrl 1",0,0,null,null,null,null,null,null,null,null,null,14]
["Ctrl 2",0,0,null,null,null,null,null,null,null,null,null,15]
[null,"Adjust",null,{"$f":"+COUNT(FiltClean)*(AVERAGE(CleanControl)-AVERAGE(DirtyControl))","v":0},null,null,null,null,null,null,null,null,16]
[null,"Total",null,{"$f":"SUM(D29:D34)+D37","v":0.1109},null,null,null,null,null,null,null,null,17]
[null,null,null,null,null,null,null,null,null,null,null,null,18]
[null,null,null,null,null,null,null,null,null,null,null,null,19]
[null,null,null,null,null,null,null,null,null,null,null,null,null,"Shape key:",null,1,"round"]
[null,null,null,null,null,null,null,null,null,null,null,null,null,null,null,2,"half"]
[null,null,null,null,null,null,null,null,null,null,null,null,null,null,null,3,"quarter"]
[null,null,null,null,null,null,null,null,null,null,null,null,null,null,null,4,"smaller than quarter"]
[null,null,null,null,null,null,null,null,null,null,null,null,null,null,null,5,"other"]